fUSD/lending_fUSD_20251201
["ID","MTS","AMOUNT","RATE_DAILY","PERIOD"]
[395231040,1764557432433,-81627.9780926,0.0001204,2]
[395231041,1764557432443,-166.66,0.00012528,2]
[395231042,1764557432452,-250.0,0.00012575,2]
[395231043,1764557432461,-204.6696632,0.00012582,2]
[395231044,1764557432470,-250.0,0.0001262,2]
[395231045,1764557432480,-500.0,0.00012622,2]
[395231046,1764557432489,-150.0,0.00012677,2]
[395231047,1764557432502,-1200.0,0.00012682,2]
[395231048,1764557432511,-2857.01,0.00012683,2]
[395231049,1764557432522,-1500.0,0.00012683,2]
[395231050,1764557432532,-1608.21,0.00012683,2]
[395231051,1764557432542,-151.08,0.00012738,2]
[395231052,1764557432552,-848.56,0.00012785,2]
[395231053,1764557432561,-1335.61777443,0.00012866,2]
[395231054,1764557432570,-166.66,0.00012942,2]
[395231055,1764557432579,-1335.61777441,0.00012963,2]
[395231056,1764557432589,-151.0,0.00012963,2]
[395231057,1764557432598,-150.0,0.00012964,2]
[395231058,1764557432608,-1000.0,0.00012965,2]
[395231059,1764557432618,-1000.0,0.00012965,2]
[395231060,1764557432627,-1452.95,0.00012965,2]
[395231061,1764557432637,-678158.56898088,0.00012966,2]
[395231062,1764557432650,-70050.76764399,0.00012966,2]
[395231063,1764557432661,-11790.66337513,0.00012966,2]
[395231064,1764557432671,-1254.6454,0.00012966,2]
[395231065,1764557432682,-30926.56,0.00012966,2]
[395231066,1764557432691,-6664.9711,0.00012966,2]
[395231067,1764557432701,-43306.12467759,0.00012966,2]
[395231068,1764557432711,-1000.0,0.00012966,2]
[395231069,1764557432721,-2500.0,0.00012966,2]
[395231070,1764557432730,-434.0,0.00012982,2]
[395231071,1764557432740,-235.3283,0.00013009,2]
[395231072,1764557432750,-10636.83273453,0.00013059,2]
[395231073,1764557432761,-1335.61777441,0.00013059,2]
[395231074,1764557432770,-9999.99,0.00013065,2]
[395231075,1764557432780,-999.99,0.00013065,2]
[395231076,1764557432789,-150.99,0.00013065,2]
[395231077,1764557432799,-150.99,0.00013065,2]
[395231078,1764557432809,-3944.77,0.00013065,2]
[395231079,1764557432819,-499.99,0.00013065,2]
[395231080,1764557432828,-1676.98,0.00013065,2]
[395231081,1764557432838,-4549.07,0.00013065,2]
[395231082,1764557432847,-3796.81,0.00013065,2]
[395231083,1764557432857,-2379.5,0.00013065,2]
[395231084,1764557432866,-345.94,0.00013065,2]
[395231085,1764557432876,-15937.48049502,0.00013066,2]
[395231086,1764557432888,-60244.77451363,0.00013066,2]
[395231113,1764557438067,-500.0,0.00012039,2]
[395231114,1764557438076,-160.02060821,0.00012039,2]
[395231115,1764557438088,-339.97939179,0.00012039,2]
[395231116,1764557438098,-500.0,0.00012039,2]
[395231117,1764557438107,-500.0,0.00012039,2]
[395231118,1764557438117,-500.0,0.00012039,2]
[395231119,1764557438127,-500.0,0.00012039,2]
[395231120,1764557438137,-500.0,0.00012039,2]
[395231121,1764557438148,-500.0,0.00012039,2]
[395231122,1764557438158,-500.0,0.00012039,2]
[395231123,1764557438168,-500.0,0.00012039,2]
[395231124,1764557438178,-500.0,0.00012039,2]
[395231125,1764557438188,-500.0,0.00012039,2]
[395231126,1764557438199,-500.0,0.00012039,2]
[395231127,1764557438208,-500.0,0.00012039,2]
[395231128,1764557438218,-500.0,0.00012039,2]
[395231129,1764557438228,-500.0,0.00012039,2]
[395231130,1764557438238,-500.0,0.00012039,2]
[395231131,1764557438247,-500.0,0.00012039,2]
[395231132,1764557438256,-500.0,0.00012039,2]
[395231133,1764557438266,-500.0,0.00012039,2]
[395231134,1764557438275,-284.08073748,0.00012039,2]
[395231135,1764557438284,-500.0,0.00012039,2]
[395231136,1764557438294,-500.0,0.00012039,2]
[395231137,1764557438303,-500.0,0.00012039,2]
[395231138,1764557438312,-500.0,0.00012522,2]
[395231139,1764557438322,-1296.05727747,0.00012965,2]
[395231140,1764557438331,-13547.88499135,0.00013066,2]
[395231141,1764557438341,-9999.99,0.00013066,2]
[395231142,1764557438350,-299.99,0.00013066,2]
[395231143,1764557438359,-35802.42,0.00013066,2]
[395231144,1764557438369,-3322.653,0.00013066,2]
[395231145,1764557438378,-164.674,0.00013066,2]
[395231146,1764557438388,-9999.99,0.00013066,2]
[395231148,1764557438397,-9999.99,0.00013066,2]
[395231150,1764557438407,-5334.1441,0.00013067,2]
[395231152,1764557438416,-3012.1267,0.00013067,2]
[395231154,1764557438426,-444.0,0.00013089,2]
[395231156,1764557438434,-215.61919432,0.00013117,2]
[395231158,1764557438444,-151.0,0.00013124,2]
[395231160,1764557438453,-216.68239479,0.00013126,3]
[395231162,1764557438462,-254969.45033147,0.00013127,2]
[395231164,1764557438472,-200.0,0.00013159,2]
[395231166,1764557438482,-500.0,0.00013159,2]
[395231168,1764557438491,-500.0,0.00013159,2]
[395231170,1764557438500,-500.0,0.00013159,2]
[395231172,1764557438509,-500.0,0.00013159,2]
[395231173,1764557438519,-500.0,0.00013159,2]
[395231175,1764557438532,-500.0,0.00013159,2]
[395231177,1764557438542,-500.0,0.00013159,2]
[395231179,1764557438550,-500.0,0.00013159,2]
[395231181,1764557438559,-500.0,0.00013159,2]
[395231183,1764557438569,-151.0,0.00013159,2]
[395231184,1764557438579,-500.0,0.00013159,2]
[395231186,1764557438588,-500.0,0.00013159,2]
[395231188,1764557438597,-151.0,0.00013159,2]
[395231190,1764557438609,-500.0,0.00013159,2]
[395231192,1764557438618,-151.0,0.00013159,2]
[395231193,1764557438627,-500.0,0.00013159,2]
[395231195,1764557438637,-151.0,0.00013159,2]
[395231196,1764557438645,-500.0,0.00013159,2]
[395231198,1764557438654,-500.0,0.00013159,2]
[395231199,1764557438663,-151.0,0.00013159,2]
[395231200,1764557438673,-500.0,0.00013159,2]
[395231201,1764557438682,-151.0,0.00013159,2]
[395231202,1764557438691,-500.0,0.00013159,2]
[395231203,1764557438701,-151.0,0.00013159,2]
[395231204,1764557438711,-500.0,0.00013159,2]
[395231205,1764557438720,-500.0,0.00013159,2]
[395231206,1764557438730,-151.0,0.00013159,2]
[395231207,1764557438740,-200.0,0.00013159,2]
[395231208,1764557438750,-500.0,0.00013159,2]
[395231209,1764557438759,-151.0,0.00013159,2]
[395231210,1764557438769,-500.0,0.00013159,2]
[395231211,1764557438779,-151.0,0.00013159,2]
[395231212,1764557438788,-500.0,0.00013159,2]
[395231213,1764557438798,-151.0,0.00013159,2]
[395231214,1764557438807,-500.0,0.00013159,2]
[395231215,1764557438817,-151.0,0.00013159,2]
[395231216,1764557438827,-500.0,0.00013159,2]
[395231217,1764557438837,-151.0,0.00013159,2]
[395231218,1764557438846,-500.0,0.00013159,2]
[395231219,1764557438856,-151.0,0.00013159,2]
[395231220,1764557438866,-151.0,0.00013159,2]
[395231221,1764557438875,-500.0,0.00013159,2]
[395231222,1764557438884,-151.0,0.00013159,2]
[395231223,1764557438893,-165.067488,0.00013159,2]
[395231224,1764557438904,-151.0,0.00013159,2]
[395231225,1764557438914,-151.0,0.00013159,2]
[395231226,1764557438924,-151.0,0.00013159,2]
[395231227,1764557438934,-151.0,0.00013159,2]
[395231228,1764557438944,-200.0,0.00013159,2]
[395231229,1764557438953,-500.0,0.00013159,2]
[395231230,1764557438963,-267.10074842,0.00013159,2]
[395231231,1764557438973,-151.0,0.00013159,2]
[395231232,1764557438981,-151.0,0.00013159,2]
[395231233,1764557438990,-151.0,0.00013159,2]
[395231234,1764557438999,-151.0,0.00013159,2]
[395231235,1764557439009,-151.0,0.00013159,2]
[395231236,1764557439018,-151.0,0.00013159,2]
[395231237,1764557439027,-151.0,0.00013159,2]
[395231238,1764557439036,-151.0,0.00013159,2]
[395231239,1764557439046,-151.0,0.00013159,2]
[395231240,1764557439055,-151.0,0.00013159,2]
[395231241,1764557439064,-151.0,0.00013159,2]
[395231242,1764557439074,-151.0,0.00013159,2]
[395231243,1764557439084,-151.0,0.00013159,2]
[395231244,1764557439094,-420.0,0.00013216,2]
[395231245,1764557439104,-1452.95,0.00013239,2]
[395231246,1764557439114,-1680.0,0.00013243,2]
[395231247,1764557439124,-33403.7185,0.00013309,2]
[395231248,1764557439134,-1000.0,0.00013309,2]
[395231249,1764557439144,-166.66,0.00013355,2]
[395231250,1764557439155,-43306.12467754,0.00013403,2]
[395231251,1764557439164,-10636.83273444,0.00013486,2]
[395231252,1764557439175,-1452.95,0.00013513,2]
[395231253,1764557439185,-1123.58810417,0.00013598,2]
[395231254,1764557439195,-6626.81406724,0.00013697,2]
[395231255,1764557439205,-1000.0,0.00013698,2]
[395231256,1764557439214,-1000.0,0.00013698,2]
[395231257,1764557439222,-1000.0,0.00013698,2]
[395231258,1764557439232,-1000.0,0.00013698,2]
[395231259,1764557439242,-1000.0,0.00013698,2]
[395231260,1764557439251,-1000.0,0.00013698,2]
[395231261,1764557439261,-1000.0,0.00013698,2]
[395231262,1764557439270,-1000.0,0.00013698,2]
[395231263,1764557439278,-1000.0,0.00013698,2]
[395231264,1764557439288,-1000.0,0.00013698,2]
[395231265,1764557439297,-1000.0,0.00013698,2]
[395231266,1764557439307,-1000.0,0.00013698,2]
[395231267,1764557439317,-1000.0,0.00013698,2]
[395231268,1764557439326,-1000.0,0.00013698,2]
[395231269,1764557439335,-1000.0,0.00013698,2]
[395231270,1764557439345,-503.53522195,0.00013698,2]
[395231271,1764557439355,-500.0,0.00013698,2]
[395231272,1764557439364,-500.0,0.00013698,2]
[395231273,1764557439374,-500.0,0.00013698,2]
[395231274,1764557439383,-500.0,0.00013698,2]
[395231275,1764557439392,-500.0,0.00013698,2]
[395231276,1764557439402,-500.0,0.00013698,2]
[395231277,1764557439412,-500.0,0.00013698,2]
[395231278,1764557439421,-500.0,0.00013698,2]
[395231279,1764557439431,-500.0,0.00013698,2]
[395231280,1764557439440,-500.0,0.00013698,2]
[395231281,1764557439449,-500.0,0.00013698,2]
[395231282,1764557439458,-500.0,0.00013698,2]
[395231283,1764557439468,-500.0,0.00013698,2]
[395231284,1764557439477,-501.51391161,0.00013698,2]
[395231285,1764557439487,-500.0,0.00013698,2]
[395231286,1764557439497,-500.0,0.00013698,2]
[395231287,1764557439505,-500.0,0.00013698,2]
[395231288,1764557439514,-500.0,0.00013698,2]
[395231289,1764557439525,-500.0,0.00013698,2]
[395231290,1764557439536,-500.0,0.00013698,2]
[395231291,1764557439545,-500.0,0.00013698,2]
[395231292,1764557439554,-500.0,0.00013698,2]
[395231293,1764557439563,-331.93282423,0.00013698,2]
[395231294,1764557439572,-500.0,0.00013698,2]
[395231295,1764557439582,-500.0,0.00013698,2]
[395231296,1764557439591,-500.0,0.00013698,2]
[395231297,1764557439601,-500.0,0.00013698,2]
[395231298,1764557439610,-500.0,0.00013698,2]
[395231299,1764557439620,-500.0,0.00013698,2]
[395231300,1764557439629,-500.0,0.00013698,2]
[395231301,1764557439640,-500.0,0.00013698,2]
[395231302,1764557439651,-500.0,0.00013698,2]
[395231303,1764557439662,-530.10808563,0.00013698,2]
[395231304,1764557439672,-567.86060721,0.00013698,2]
[395231305,1764557439681,-500.0,0.00013698,2]
[395231306,1764557439692,-500.0,0.00013698,2]
[395231307,1764557439702,-348.16711536,0.00013698,2]
[395231308,1764557439712,-500.0,0.00013698,2]
[395231309,1764557439721,-500.0,0.00013698,2]
[395231310,1764557439731,-500.0,0.00013698,2]
[395231311,1764557439740,-500.0,0.00013698,2]
[395231312,1764557439749,-500.0,0.00013698,2]
[395231313,1764557439759,-500.0,0.00013698,2]
[395231314,1764557439768,-500.0,0.00013698,2]
[395231315,1764557439777,-500.0,0.00013698,2]
[395231316,1764557439787,-500.0,0.00013698,2]
[395231317,1764557439796,-500.0,0.00013698,2]
[395231318,1764557439805,-500.0,0.00013698,2]
[395231319,1764557439815,-500.0,0.00013698,2]
[395231320,1764557439824,-500.0,0.00013698,2]
[395231321,1764557439834,-500.0,0.00013698,2]
[395231322,1764557439843,-500.0,0.00013698,2]
[395231323,1764557439852,-500.0,0.00013698,2]
[395231324,1764557439862,-500.0,0.00013698,2]
[395231325,1764557439872,-500.0,0.00013698,2]
[395231327,1764557439881,-500.0,0.00013698,2]
[395231328,1764557439891,-500.0,0.00013698,2]
[395231329,1764557439900,-559.01212268,0.00013698,2]
[395231330,1764557439910,-515.58654802,0.00013698,2]
[395231331,1764557439919,-500.0,0.00013698,2]
[395231332,1764557439928,-500.0,0.00013698,2]
[395231333,1764557439938,-500.0,0.00013698,2]
[395231334,1764557439948,-500.0,0.00013698,2]
[395231335,1764557439958,-500.0,0.00013698,2]
[395231337,1764557439967,-500.0,0.00013698,2]
[395231338,1764557439976,-500.0,0.00013698,2]
[395231339,1764557439985,-500.0,0.00013698,2]
[395231340,1764557439995,-1000.0,0.00013698,2]
[395231341,1764557440004,-1000.0,0.00013698,2]
[395231342,1764557440015,-1000.0,0.00013698,2]
[395231343,1764557440024,-1000.0,0.00013698,2]
[395231344,1764557440034,-1000.0,0.00013698,2]
[395231345,1764557440045,-1000.0,0.00013698,2]
[395231346,1764557440054,-1000.0,0.00013698,2]
[395231347,1764557440064,-1000.0,0.00013698,2]
[395231348,1764557440073,-1000.0,0.00013698,2]
[395231349,1764557440083,-1000.0,0.00013698,2]
[395231350,1764557440093,-1000.0,0.00013698,2]
[395231351,1764557440102,-573.9,0.00013698,2]
[395231352,1764557440112,-500.0,0.00013698,2]
[395231353,1764557440122,-500.0,0.00013698,2]
[395231354,1764557440132,-500.0,0.00013698,2]
[395231355,1764557440142,-500.0,0.00013698,2]
[395231356,1764557440151,-500.0,0.00013698,2]
[395231357,1764557440161,-500.0,0.00013698,2]
[395231358,1764557440170,-540.21744354,0.00013698,2]
[395231359,1764557440180,-500.0,0.00013698,2]
[395231360,1764557440190,-500.0,0.00013698,2]
[395231361,1764557440199,-500.0,0.00013698,2]
[395231362,1764557440210,-500.0,0.00013698,2]
[395231363,1764557440219,-484.18397562,0.00013698,2]
[395231364,1764557440229,-500.0,0.00013698,2]
[395231365,1764557440238,-500.0,0.00013698,2]
[395231366,1764557440250,-500.0,0.00013698,2]
[395231367,1764557440260,-500.0,0.00013698,2]
[395231368,1764557440270,-500.0,0.00013698,2]
[395231369,1764557440279,-500.0,0.00013698,2]
[395231370,1764557440288,-500.0,0.00013698,2]
[395231371,1764557440298,-500.0,0.00013698,2]
[395231372,1764557440308,-500.0,0.00013698,2]
[395231373,1764557440318,-500.0,0.00013698,2]
[395231374,1764557440327,-500.0,0.00013698,2]
[395231375,1764557440336,-500.0,0.00013698,2]
[395231376,1764557440346,-500.0,0.00013698,2]
[395231377,1764557440355,-333.85230808,0.00013698,2]
[395231378,1764557440365,-500.0,0.00013698,2]
[395231379,1764557440374,-500.0,0.00013698,2]
[395231380,1764557440383,-500.0,0.00013698,2]
[395231381,1764557440393,-500.0,0.00013698,2]
[395231382,1764557440403,-500.0,0.00013698,2]
[395231383,1764557440412,-593.21617524,0.00013698,2]
[395231384,1764557440421,-500.0,0.00013698,2]
[395231385,1764557440430,-500.0,0.00013698,2]
[395231386,1764557440440,-501.94091737,0.00013698,2]
[395231387,1764557440449,-500.0,0.00013698,2]
[395231388,1764557440459,-500.0,0.00013698,2]
[395231389,1764557440468,-500.0,0.00013698,2]
[395231390,1764557440478,-500.0,0.00013698,2]
[395231391,1764557440488,-190.11352701,0.00013698,2]
[395231392,1764557440498,-500.0,0.00013698,2]
[395231394,1764557440508,-500.0,0.00013698,2]
[395231396,1764557440517,-500.0,0.00013698,2]
[395231398,1764557440527,-500.0,0.00013698,2]
[395231399,1764557440538,-500.0,0.00013698,2]
[395231401,1764557440548,-500.0,0.00013698,2]
[395231403,1764557440557,-500.0,0.00013698,2]
[395231404,1764557440567,-500.0,0.00013698,2]
[395231406,1764557440576,-500.0,0.00013698,2]
[395231408,1764557440585,-500.0,0.00013698,2]
[395231410,1764557440594,-500.0,0.00013698,2]
[395231412,1764557440603,-500.0,0.00013698,2]
[395231413,1764557440613,-500.0,0.00013698,2]
[395231415,1764557440622,-500.0,0.00013698,2]
[395231417,1764557440632,-500.0,0.00013698,2]
[395231420,1764557440642,-500.0,0.00013698,2]
[395231422,1764557440651,-500.0,0.00013698,2]
[395231425,1764557440660,-500.0,0.00013698,2]
[395231428,1764557440669,-300.0,0.00013698,2]
[395231429,1764557440678,-300.0,0.00013698,2]
[395231431,1764557440687,-300.0,0.00013698,2]
[395231433,1764557440696,-349.89110636,0.00013698,2]
[395231435,1764557440705,-500.0,0.00013698,2]
[395231437,1764557440715,-500.0,0.00013698,2]
[395231438,1764557440724,-500.0,0.00013698,2]
[395231440,1764557440733,-545.80682701,0.00013698,2]
[395231442,1764557440742,-500.0,0.00013698,2]
[395231443,1764557440751,-500.0,0.00013698,2]
[395231445,1764557440759,-500.0,0.00013698,2]
[395231447,1764557440768,-500.0,0.00013698,2]
[395231449,1764557440777,-529.10702675,0.00013698,2]
[395231450,1764557440787,-500.0,0.00013698,2]
[395231452,1764557440796,-500.0,0.00013698,2]
[395231454,1764557440805,-500.0,0.00013698,2]
[395231456,1764557440814,-624.18148176,0.00013698,2]
[395231457,1764557440823,-500.0,0.00013698,2]
[395231459,1764557440832,-500.0,0.00013698,2]
[395231461,1764557440842,-500.0,0.00013698,2]
[395231463,1764557440853,-1229.27,0.00013698,2]
[395231465,1764557440862,-1229.27,0.00013698,2]
[395231466,1764557440872,-1229.27,0.00013698,2]
[395231468,1764557440881,-1229.27,0.00013698,2]
[395231470,1764557440891,-1229.27,0.00013698,2]
[395231472,1764557440901,-1229.27,0.00013698,2]
[395231473,1764557440910,-1229.27,0.00013698,2]
[395231475,1764557440919,-1229.27,0.00013698,2]
[395231477,1764557440928,-1229.27,0.00013698,2]
[395231479,1764557440937,-1229.27,0.00013698,2]
[395231480,1764557440945,-1229.27,0.00013698,2]
[395231482,1764557440954,-1229.27,0.00013698,2]
[395231484,1764557440964,-1229.27,0.00013698,2]
[395231486,1764557440972,-1229.27,0.00013698,2]
[395231488,1764557440981,-1229.27,0.00013698,2]
[395231490,1764557440990,-1229.27,0.00013698,2]
[395231491,1764557440999,-1229.27,0.00013698,2]
[395231493,1764557441007,-1229.27,0.00013698,2]
[395231495,1764557441017,-1229.27,0.00013698,2]
[395231497,1764557441026,-1229.27,0.00013698,2]
[395231499,1764557441035,-1229.27,0.00013698,2]
[395231500,1764557441043,-1229.27,0.00013698,2]
[395231502,1764557441052,-1229.27,0.00013698,2]
[395231504,1764557441061,-1229.33,0.00013698,2]
[395231506,1764557441071,-855.81,0.00013699,2]
[395231508,1764557441080,-232.46,0.00013699,2]
[395231510,1764557441088,-600.0,0.00013699,2]
[395231511,1764557441097,-275.83876883,0.00013699,2]
[395231513,1764557441106,-251.04729167,0.00013699,2]
[395231515,1764557441115,-500.0,0.00013699,2]
[395231517,1764557441124,-347.0,0.00013704,2]
[395231519,1764557441136,-200.0,0.00013707,2]
[395231521,1764557441144,-200.0,0.00013707,2]
[395231523,1764557441154,-500.0,0.00013707,2]
[395231525,1764557441163,-27216.61801308,0.00013735,2]
[395231526,1764557441172,-166.66,0.00013769,2]
[395231528,1764557441181,-250.0,0.00013781,2]
[395231530,1764557441190,-300.0,0.00013781,2]
[395231532,1764557441200,-300.0,0.00013781,2]
[395231534,1764557441209,-300.0,0.00013781,2]
[395231536,1764557441219,-300.0,0.00013781,2]
[395231538,1764557441228,-300.0,0.00013781,2]
[395231540,1764557441237,-300.0,0.00013781,2]
[395231541,1764557441246,-195.0,0.00013781,2]
[395231543,1764557441255,-300.0,0.00013781,2]
[395231545,1764557441264,-300.0,0.00013781,2]
[395231547,1764557441273,-300.0,0.00013781,2]
[395231549,1764557441282,-300.0,0.00013781,2]
[395231550,1764557441291,-195.0,0.00013781,2]
[395231552,1764557441300,-1452.95,0.00013787,2]
[395231554,1764557441309,-43306.12467754,0.0001384,2]
[395231556,1764557441318,-195.0,0.00013884,2]
[395231558,1764557441327,-195.0,0.00013884,2]
[395231560,1764557441335,-10636.83273444,0.00013913,2]
[395231561,1764557441344,-1680.0,0.00013913,2]
[395231563,1764557441353,-11405.45493898,0.00013914,2]
[395231565,1764557441363,-500.0,0.00013951,2]
[395231567,1764557441372,-500.0,0.00013993,2]
[395231569,1764557441382,-2630.78649275,0.00014028,2]
[395231571,1764557441391,-1452.95,0.00014061,2]
[395231573,1764557441400,-255.0,0.00014066,2]
[395231574,1764557441410,-579.83246976,0.00014113,2]
[395231576,1764557441419,-1123.58810417,0.00014148,2]
[395231578,1764557441428,-166.66,0.00014182,2]
[395231580,1764557441437,-600.0,0.00014247,2]
[395231582,1764557441446,-200.0,0.00014255,2]
[395231584,1764557441454,-200.0,0.00014255,2]
[395231586,1764557441464,-500.0,0.00014255,2]
[395231587,1764557441473,-798.51664654,0.00014273,2]
[395231589,1764557441482,-43306.12467754,0.00014277,2]
[395231591,1764557441491,-1452.95,0.00014335,2]
[395231593,1764557441501,-10636.83273444,0.00014339,2]
[395231595,1764557441510,-500.0,0.00014373,2]
[395231597,1764557441519,-500.0,0.00014373,2]
[395231599,1764557441533,-500.0,0.00014373,2]
[395231600,1764557441544,-500.0,0.00014373,2]
[395231602,1764557441553,-500.0,0.00014373,2]
[395231604,1764557441563,-295.21198684,0.00014373,2]
[395231606,1764557441575,-500.0,0.00014373,2]
[395231608,1764557441584,-500.0,0.00014373,2]
[395231610,1764557441593,-500.0,0.00014373,2]
[395231611,1764557441603,-500.0,0.00014373,2]
[395231613,1764557441613,-500.0,0.00014373,2]
[395231615,1764557441622,-503.29972338,0.00014373,2]
[395231617,1764557441631,-500.0,0.00014373,2]
[395231619,1764557441641,-500.0,0.00014373,2]
[395231621,1764557441651,-500.0,0.00014373,2]
[395231623,1764557441662,-500.0,0.00014373,2]
[395231625,1764557441671,-500.0,0.00014373,2]
[395231627,1764557441680,-500.0,0.00014373,2]
[395231628,1764557441690,-587.0,0.00014507,2]
[395231630,1764557441700,-151.0,0.00014521,2]
[395231632,1764557441709,-2351.0,0.00014567,2]
[395231634,1764557441719,-166.66,0.00014596,2]
[395231636,1764557441728,-1452.95,0.00014609,2]
[395231638,1764557441738,-500.0,0.00014631,2]
[395231639,1764557441747,-500.0,0.00014631,2]
[395231641,1764557441756,-500.0,0.00014631,2]
[395231643,1764557441766,-500.0,0.00014631,2]
[395231661,1764557441996,-500.0,0.00014631,2]
[395231662,1764557442039,-500.0,0.00014631,2]
[395231663,1764557442048,-639.66251844,0.00014631,2]
[395231664,1764557442058,-500.0,0.00014631,2]
[395231665,1764557442068,-500.0,0.00014631,2]
[395231666,1764557442078,-500.0,0.00014631,2]
[395231667,1764557442088,-500.0,0.00014631,2]
[395231668,1764557442098,-500.0,0.00014631,2]
[395231669,1764557442107,-386.00822049,0.00014631,2]
[395231670,1764557442117,-500.0,0.00014631,2]
[395231671,1764557442126,-1123.58810417,0.00014699,2]
[395231672,1764557442135,-43306.12467754,0.00014714,2]
[395231673,1764557442145,-10636.83273444,0.00014766,2]
[395231674,1764557442156,-500.0,0.00014793,2]
[395231675,1764557442165,-500.0,0.00014793,2]
[395231676,1764557442174,-500.0,0.00014793,2]
[395231677,1764557442184,-600.0,0.00014795,2]
[395231678,1764557442193,-200.0,0.00014803,2]
[395231679,1764557442202,-200.0,0.00014803,2]
[395231680,1764557442212,-500.0,0.00014803,2]
[395231681,1764557442222,-1452.95,0.00014883,2]
[395231682,1764557442231,-225.39616974,0.000149,2]
[395231683,1764557442241,-507.34097889,0.00014921,2]
[395231684,1764557442251,-536.01756755,0.00014921,2]
[395231685,1764557442261,-1008.35390567,0.00014921,2]
[395231686,1764557442272,-1009.2603075,0.00014921,2]
[395231687,1764557442282,-1000.0,0.00014921,2]
[395231688,1764557442291,-1001.00569167,0.00014921,2]
[395231689,1764557442301,-1000.0,0.00014921,2]
[395231690,1764557442310,-1000.0,0.00014921,2]
[395231691,1764557442320,-1000.0,0.00014921,2]
[395231692,1764557442330,-1000.0,0.00014921,2]
[395231693,1764557442342,-159.45765875,0.00014921,2]
[395231694,1764557442352,-1000.0,0.00014921,2]
[395231695,1764557442362,-1000.0,0.00014921,2]
[395231696,1764557442372,-1000.0,0.00014921,2]
[395231697,1764557442383,-1000.0,0.00014921,2]
[395231698,1764557442395,-151.0,0.00015069,2]
[395231699,1764557442414,-2751.0,0.00015096,2]
[395231700,1764557442430,-1250.0,0.000151,2]
[395231701,1764557442439,-1250.0,0.000151,2]
[395231702,1764557442449,-153.0,0.000151,2]
[395231703,1764557442459,-43306.12467754,0.00015152,2]
[395231704,1764557442468,-1452.95,0.00015157,2]
[395231705,1764557442478,-10636.83273444,0.00015193,2]
[395231706,1764557442487,-1123.58810417,0.00015249,2]
[395231707,1764557442498,-433.0,0.00015259,2]
[395231708,1764557442510,-1498.0,0.00015262,2]
[395231709,1764557442520,-152.44390529,0.00015288,2]
[395231710,1764557442534,-150.0,0.00015288,2]
[395231711,1764557442543,-150.00000001,0.00015288,2]
[395231712,1764557442553,-150.0,0.00015288,2]
[395231713,1764557442563,-214.27357495,0.00015288,2]
[395231714,1764557442573,-150.0,0.00015288,2]
[395231715,1764557442583,-150.0,0.00015288,2]
[395231716,1764557442594,-150.0,0.00015288,2]
[395231717,1764557442606,-150.0,0.00015288,2]
[395231718,1764557442616,-150.0,0.00015288,2]
[395231719,1764557442627,-150.0,0.00015288,2]
[395231720,1764557442637,-190.82998658,0.00015288,2]
[395231721,1764557442647,-150.0,0.00015288,2]
[395231722,1764557442656,-152.44390529,0.00015305,2]
[395231723,1764557442665,-214.27357495,0.00015305,2]